bitfinex-derivatives/quotes_ETHF0:USTF0_20250410
["timestamp","ask_amount","ask_price","bid_price","bid_amount"]
[1744328619458,5.16,1524.6,1524.5,46.81266]
[1744328619660,1.9522,1524.6,1524.5,45.5]
[1744328620453,1.9522,1524.6,1524.5,46.81266]
[1744328623658,1.9522,1524.6,1524.5,50.02046]
[1744328623850,1.9522,1524.6,1524.5,46.81266]
[1744328624261,1.9522,1524.6,1524.5,50.02046]
[1744328624459,6.6747,1524.8,1524.7,1.31249]
[1744328624660,8.34786246,1525.2,1524.7,3.2078]
[1744328624968,3.7434,1525.1,1524.9,1.31229]
[1744328625156,1.938,1525.0,1524.9,3.22729]
[1744328625661,1.938,1525.0,1524.9,44.02729]
[1744328626863,1.938,1525.0,1524.9,40.8]
[1744328627064,5.1458,1525.0,1524.9,40.8]
[1744328627264,6.45803,1525.0,1524.9,40.8]
[1744328627560,6.45803,1525.0,1524.9,45.497]
[1744328627766,6.45803,1525.0,1524.9,40.8]
[1744328627955,11.45803,1525.0,1524.9,45.497]
[1744328629065,11.45803,1525.0,1524.9,40.8]
[1744328635173,1.31261,1524.6,1524.4,4.72353252]
[1744328635373,4.52041,1524.6,1524.5,4.697]
[1744328635863,4.52041,1524.6,1524.5,45.497]
[1744328637166,6.27271,1524.6,1524.5,45.497]
[1744328639477,6.27271,1524.6,1524.5,46.80966]
[1744328641077,6.27271,1524.6,1524.5,45.497]
[1744328641370,5.13371,1524.6,1524.5,46.80966]
[1744328642280,5.13371,1524.6,1524.5,45.497]
[1744328642775,5.13371,1524.6,1524.5,4.697]
[1744328648488,5.13368,1524.6,1524.5,4.697]
[1744328648787,2.0688,1524.6,1524.5,6.00966]
[1744328648989,2.0688,1524.6,1524.5,8.18156]
[1744328649887,6.45928578,1524.7,1524.5,8.18156]
[1744328650090,8.59298578,1524.7,1524.5,8.18156]
[1744328650589,8.59298578,1524.7,1524.6,40.8]
[1744328653189,3.44625,1524.7,1524.6,40.8]
[1744328654596,3.44625,1524.7,1524.6,42.11258]
[1744328654890,2.1337,1524.7,1524.6,44.25778]
[1744328655090,2.1337,1524.7,1524.6,46.11298]
[1744328656495,6.45920578,1524.8,1524.7,1.31249]
[1744328656689,8.53190578,1524.8,1524.7,3.31029]
[1744328656892,3.38517,1524.8,1524.7,3.8438]
[1744328660499,3.38517,1524.8,1524.7,5.15629]
[1744328660699,8.35453578,1524.9,1524.8,1.3124]
[1744328660903,5.14673578,1524.9,1524.8,8.0285]
[1744328661115,5.14673578,1524.9,1524.8,13.0285]
[1744328661317,5.14673578,1524.9,1524.8,48.8285]
[1744328662520,5.14673578,1524.9,1524.8,53.8285]
[1744328662719,5.14673578,1524.9,1524.8,57.0363]
[1744328663814,5.14673578,1524.9,1524.8,65.59231124]
[1744328665313,14.78969853,1525.2,1525.1,1.31215]
[1744328665314,2.1515,1525.2,1525.1,1.31215]
[1744328665513,2.1515,1525.2,1525.1,6.00515]
[1744328666107,2.1515,1525.2,1525.1,48.96275]
[1744328667928,2.1515,1525.2,1525.1,46.80515]
[1744328671125,3.46356,1525.2,1525.1,40.8]
[1744328671521,3.46356,1525.2,1525.1,45.492]
[1744328671820,3.46356,1525.2,1525.1,46.80415]
[1744328672625,3.46356,1525.2,1525.1,42.11215]
[1744328673026,3.46356,1525.2,1525.1,46.80415]
[1744328674120,2.1515,1525.2,1525.1,46.80415]
[1744328675130,1.31216,1525.1,1524.9,100.024]
[1744328675327,3.9597,1525.0,1524.9,101.33625]
[1744328675627,3.9597,1525.0,1524.9,146.82825]
[1744328675821,3.9597,1525.0,1524.9,142.13625]
[1744328676123,3.9597,1525.0,1524.9,146.82825]
[1744328676826,2.1582,1525.0,1524.9,148.96765]
[1744328678224,3.2078,1525.3,1524.9,147.6554]
[1744328678225,4.51984,1525.3,1524.9,147.6554]
[1744328678424,1.31207,1525.2,1525.0,5.18038]
[1744328678725,3.29217,1525.2,1525.0,5.18038]
[1744328679224,1.9801,1525.1,1525.0,5.18038]
[1744328679927,1.9801,1525.1,1525.0,3.8682]
[1744328680125,3.675,1525.1,1525.0,3.8682]
[1744328680322,5.5335,1525.1,1525.0,5.18043]
[1744328680735,5.5335,1525.1,1525.0,3.8682]
[1744328681030,5.5335,1525.1,1524.9,146.82826]
[1744328681227,2.1389,1525.0,1524.9,148.89476]
[1744328682427,2.1389,1525.0,1524.9,146.82826]
[1744328685030,2.1389,1525.0,1524.9,145.516]
[1744328685229,5.3467,1525.0,1524.9,145.516]
[1744328685729,5.3467,1525.0,1524.9,146.82832]
[1744328686325,5.3467,1525.0,1524.9,142.13632]
[1744328686627,5.3467,1525.0,1524.9,146.82332]
[1744328687128,2.1389,1525.0,1524.9,146.82332]
[1744328688429,2.1389,1525.0,1524.9,140.824]
[1744328688728,2.1389,1525.0,1524.9,145.511]
[1744328688933,2.1389,1525.0,1524.9,140.824]
[1744328689229,2.1389,1525.0,1524.9,146.82332]
[1744328689832,2.1389,1525.0,1524.9,148.78972]
[1744328693833,2.1389,1525.0,1524.9,140.824]
[1744328694034,3.45113,1525.0,1524.9,145.511]
[1744328694936,3.45113,1525.0,1524.9,140.824]
[1744328695127,3.45113,1525.0,1524.9,145.511]
[1744328695436,2.1389,1525.0,1524.9,146.82332]
[1744328696237,2.1389,1525.0,1524.9,148.78662]
[1744328697038,3.45113,1525.0,1524.9,146.82332]
[1744328697530,3.45113,1525.0,1524.9,145.511]
[1744328698438,3.45113,1525.0,1524.9,140.824]
[1744328698640,3.45113,1525.0,1524.9,145.511]
[1744328699440,3.45113,1525.0,1524.9,40.8]
[1744328699741,3.45113,1525.0,1524.9,4.687]
[1744328700041,8.45113,1525.0,1524.9,4.687]
[1744328700540,1.31232,1524.9,1524.8,40.8]
[1744328700740,1.3124,1524.8,1524.7,10.31177036]
[1744328701038,4.5069,1524.8,1524.7,14.99877036]
[1744328701234,6.485,1524.8,1524.7,55.79877036]
[1744328701635,6.485,1524.8,1524.7,45.487]
[1744328701935,11.485,1524.8,1524.7,45.487]
[1744328702136,6.485,1524.8,1524.7,45.487]
[1744328702539,6.485,1524.8,1524.7,40.8]
[1744328702740,5.1726,1524.8,1524.7,42.11249]
[1744328702940,3.6187,1524.8,1524.7,42.11249]
[1744328703134,6.45898578,1525.0,1524.8,1.31234]
[1744328703135,8.01288578,1525.0,1524.8,1.31234]
[1744328703441,1.9572,1524.9,1524.8,3.20374]
[1744328703640,1.9572,1524.9,1524.8,7.89074]
[1744328705342,3.26952,1524.9,1524.8,6.5784]
[1744328705642,1.9572,1524.9,1524.8,5.9994]
[1744328705842,1.9572,1524.9,1524.8,6.5172]
[1744328706045,3.26952,1524.9,1524.8,6.5172]
[1744328707144,1.9572,1524.9,1524.8,7.8296]
[1744328708741,3.26952,1524.9,1524.8,4.687]
[1744328709244,1.9572,1524.9,1524.8,4.687]
[1744328709550,1.31224,1525.0,1524.8,7.82665]
[1744328709745,3.22754,1525.0,1524.8,7.82665]
[1744328709940,3.22754,1525.0,1524.9,1.8273]
[1744328710642,1.9153,1525.0,1524.9,3.13962]
[1744328710948,1.9153,1525.0,1524.9,1.8273]
[1744328711243,1.9153,1525.0,1524.9,3.13962]
[1744328711440,1.9153,1525.0,1524.9,6.50182]
[1744328712042,3.22753,1525.0,1524.9,3.5163]
[1744328712238,1.9153,1525.0,1524.9,3.5163]
[1744328712438,1.9153,1525.0,1524.9,8.2033]
[1744328712740,1.9153,1525.0,1524.9,9.51562]
[1744328714845,1.9153,1525.0,1524.9,4.82862]
[1744328715349,1.9153,1525.0,1524.9,9.51062]
[1744328716147,1.9153,1525.0,1524.9,8.1983]
[1744328716349,1.9153,1525.0,1524.9,9.51062]
[1744328717543,3.22753,1525.0,1524.9,8.1983]
[1744328717746,1.3124,1524.8,1524.7,66.56323467]
[1744328717946,1.3124,1524.8,1524.7,71.24523467]
[1744328718455,4.9284,1524.8,1524.7,71.24523467]
[1744328719654,4.9284,1524.8,1524.7,45.482]
[1744328736463,4.9284,1524.8,1524.7,40.8]
[1744328736963,4.9284,1524.8,1524.7,45.482]
[1744328737160,4.9284,1524.8,1524.7,40.8]
[1744328737459,4.9284,1524.8,1524.2,20.5922278]
[1744328737460,1.31283,1524.3,1524.2,20.5922278]
[1744328737663,4.52063,1524.3,1524.2,20.5922278]
[1744328737856,9.52063,1524.3,1524.2,20.5922278]
[1744328738162,4.52063,1524.3,1524.2,20.5922278]
[1744328738354,3.18043,1524.3,1524.2,61.3922278]
[1744328740354,8.18043,1524.3,1524.2,20.5922278]
[1744328741562,1.31292,1524.2,1524.1,40.80984252]
[1744328741761,6.49252,1524.2,1524.1,40.80984252]
[1744328744062,1.31318,1523.9,1523.8,4.684]
[1744328744360,1.31335,1523.7,1523.6,50.45687304]
[1744328744563,1.31335,1523.7,1523.6,91.25687304]
[1744328745063,3.24205,1523.7,1523.6,83.08547304]
[1744328745564,9.0598,1523.9,1523.6,84.39884304]
[1744328745862,1.31327,1523.8,1523.7,8.1931]
[1744328746060,10.9885,1523.9,1523.7,8.1931]
[1744328746061,3.2078,1523.9,1523.7,8.1931]
[1744328746263,8.35453578,1524.3,1523.8,1.8613]
[1744328746463,8.35453578,1524.3,1524.0,3.2078]
[1744328746760,5.14673578,1524.3,1524.2,1.31292]
[1744328747164,5.14673578,1524.3,1524.2,8.10442]
[1744328748359,5.14673578,1524.3,1524.2,11.96902]
[1744328748670,7.71993621,1524.4,1524.3,1.31283]
[1744328748963,7.71993621,1524.4,1524.3,42.11283]
[1744328749161,0.01993621,1524.4,1524.3,47.11283]
[1744328749661,6.47045,1524.9,1524.6,1.31254]
[1744328749958,6.47045,1524.9,1524.7,4.678]
[1744328750364,6.47045,1524.9,1524.7,5.99048]
[1744328750566,5.1581,1524.9,1524.7,5.99048]
[1744328751165,1.54954252,1525.0,1524.7,4.678]
[1744328751365,0.00984252,1525.0,1524.9,1.31232]
[1744328751556,0.00984252,1525.0,1524.9,104.57012]
[1744328751760,0.00984252,1525.0,1524.9,118.00022181]
[1744328751963,0.00984252,1525.0,1524.9,160.76062181]
[1744328753063,0.00984252,1525.0,1524.9,161.41662181]
[1744328753265,0.00984252,1525.0,1524.9,160.76062181]
[1744328753470,0.00984252,1525.0,1524.9,161.41662181]
[1744328756767,0.00984252,1525.0,1524.9,147.98652]
[1744328756964,0.00984252,1525.0,1524.9,145.526]
[1744328757164,3.20177252,1525.0,1524.9,145.526]
[1744328759169,6.40957252,1525.0,1524.9,145.526]
[1744328759371,13.00877252,1525.0,1524.9,145.526]
[1744328760373,13.00877252,1525.0,1524.6,4.68584252]
[1744328760374,1.31249,1524.7,1524.6,4.68584252]
[1744328760573,3.2078,1524.7,1524.6,4.68584252]
[1744328760869,4.52029,1524.7,1524.6,45.48584252]
[1744328761265,3.2078,1524.7,1524.6,45.48584252]
[1744328761465,4.52029,1524.7,1524.6,40.80984252]
[1744328761667,3.2078,1524.7,1524.6,46.79842252]
[1744328762274,1.9407,1524.8,1524.7,1.31249]
[1744328762574,5.1485,1524.8,1524.7,1.7787]
[1744328763275,1.60904252,1525.0,1524.8,1.31235]
[1744328763276,0.00984252,1525.0,1524.8,1.31235]
[1744328763466,3.23977252,1525.0,1524.9,4.676]
[1744328764375,6.44757252,1525.0,1524.9,4.676]
[1744328764574,11.44757252,1525.0,1524.9,4.676]
[1744328764874,3.23977252,1525.0,1524.9,4.676]
[1744328765667,1.92754252,1525.0,1524.9,4.676]
[1744328765870,3.23977252,1525.0,1524.9,4.676]
[1744328767576,1.92754252,1525.0,1524.9,5.98832]
[1744328767777,1.92754252,1525.0,1524.9,7.80322]
[1744328770796,0.00984252,1525.0,1524.9,12.80322]
[1744328771089,0.00984252,1525.0,1524.9,13.02972]
[1744328773090,0.00984252,1525.0,1524.9,13.68572]
[1744328776487,1.6245,1525.5,1525.4,1.31189]
[1744328776693,1.6245,1525.5,1525.4,5.98389]
[1744328777393,1.5861,1525.7,1525.6,1.31171]
[1744328777595,1.5583,1525.9,1525.8,1.31154]
[1744328777897,1.5583,1525.9,1525.8,46.78254]
[1744328781899,1.5583,1525.9,1525.8,48.58254]
[1744328783104,1.8562,1526.0,1525.9,1.31146]
[1744328783300,1.8562,1526.0,1525.9,4.51926]
[1744328783600,1.8562,1526.0,1525.9,6.31926]
[1744328784299,1.6455,1526.3,1526.2,1.3112]
[1744328784600,1.6455,1526.3,1526.2,5.9812]
[1744328785102,1.6455,1526.3,1526.2,4.67]
[1744328785703,3.567,1526.3,1526.2,4.67]
[1744328786096,3.567,1526.3,1526.2,5.9812]
[1744328787105,3.567,1526.3,1526.2,9.189]
[1744328787505,3.567,1526.3,1526.2,5.9812]
[1744328788807,3.567,1526.3,1526.2,9.189]
[1744328789204,3.567,1526.3,1526.2,5.9812]
[1744328789404,3.567,1526.3,1526.2,9.189]
[1744328793014,1.9215,1526.3,1526.2,9.845]
[1744328793213,1.9215,1526.3,1526.2,9.189]
[1744328793419,1.5397,1526.5,1526.4,1.31103]
[1744328793716,1.7684,1526.7,1526.6,1.31086]
[1744328793913,1.7684,1526.7,1526.6,5.97886]
[1744328794308,4.9762,1527.2,1527.1,1.31043]
[1744328794510,3.2078,1527.2,1527.1,5.97843]
[1744328794914,3.2078,1527.2,1527.1,46.77843]
[1744328795614,3.2078,1527.2,1527.1,45.468]
[1744328795811,8.2078,1527.2,1527.1,45.468]
[1744328796013,11.1286,1527.2,1527.1,45.468]
[1744328796517,11.1286,1527.2,1527.1,46.77843]
[1744328797315,6.1286,1527.2,1527.1,46.77843]
[1744328799213,7.43894,1527.2,1527.1,45.468]
[1744328799513,11.1286,1527.2,1526.8,1.3106]
[1744328799711,7.43901,1527.2,1527.0,1.31051]
[1744328800013,6.1286,1527.2,1527.1,1.31043]
[1744328800514,6.1286,1527.2,1527.0,40.8]
[1744328800913,1.31043,1527.1,1527.0,40.8]
[1744328801719,6.1286,1527.2,1527.0,40.8]
[1744328801720,7.43901,1527.2,1527.0,40.8]
[1744328801912,7.43901,1527.2,1527.0,42.11049]
[1744328802713,7.43894,1527.2,1527.1,1.31043]
[1744328802919,7.43894,1527.2,1527.0,42.11044]
[1744328803418,1.31043,1527.1,1527.0,40.8]
[1744328804220,7.439,1527.2,1527.0,42.11051]
[1744328804418,6.1286,1527.2,1527.1,1.31043]
[1744328805419,7.43894,1527.2,1527.1,1.31043]
[1744328805621,6.1286,1527.2,1527.1,1.31043]
[1744328806322,7.43894,1527.2,1527.1,1.31043]
[1744328807920,7.43901,1527.2,1527.0,42.11049]
[1744328808118,1.31043,1527.1,1527.0,42.11049]
[1744328809315,7.439,1527.2,1527.0,42.11049]
[1744328809518,1.7338,1527.1,1527.0,42.11049]
[1744328809718,1.7338,1527.1,1527.0,46.77349]
[1744328810019,3.04423,1527.1,1527.0,46.77349]
[1744328810321,3.04423,1527.1,1527.0,45.463]
[1744328810919,3.04423,1527.1,1527.0,46.77351]
[1744328811222,3.04423,1527.1,1527.0,45.463]
[1744328811721,1.7338,1527.1,1527.0,46.77351]
[1744328812524,3.04423,1527.1,1527.0,46.77351]
[1744328812722,1.7338,1527.1,1527.0,46.77351]
[1744328815017,3.04423,1527.1,1527.0,46.77351]
[1744328818419,1.7338,1527.1,1527.0,46.77351]
[1744328819325,4.6504,1527.2,1527.1,1.31043]
[1744328819526,6.3241,1527.2,1527.1,1.31043]
[1744328819923,4.6504,1527.2,1527.1,1.31043]
[1744328820123,3.2431,1527.5,1527.4,1.31017]
[1744328820429,3.2431,1527.5,1527.4,5.97217]
[1744328824330,3.2078,1527.6,1527.5,1.31008]
[1744328824629,6.456,1527.6,1527.5,1.31008]
[1744328826622,6.456,1527.6,1527.5,2.97018]
[1744328827322,3.2078,1528.0,1527.7,1.30991]
[1744328827531,1.30976,1527.9,1527.8,4.661]
[1744328827733,4.51756,1527.9,1527.8,4.661]
[1744328827925,3.2078,1527.9,1527.8,46.77083]
[1744328828433,7.74784,1527.9,1527.8,45.461]
[1744328828633,7.74784,1527.9,1527.8,46.77083]
[1744328828833,7.74784,1527.9,1527.8,45.461]
[1744328829131,6.4381,1527.9,1527.8,46.77083]
[1744328829326,7.74784,1527.9,1527.8,46.77083]
[1744328829529,7.74784,1527.9,1527.8,40.8]
[1744328829729,7.74784,1527.9,1527.8,45.461]
[1744328833634,7.74784,1527.9,1527.8,40.8]
[1744328837540,7.74784,1527.9,1527.6,4.661]
[1744328837541,1.31017,1527.4,1527.3,0.00984252]
[1744328837743,4.51797,1527.4,1527.3,0.00984252]
[1744328838042,4.51797,1527.4,1527.3,40.80984252]
[1744328838638,6.21927,1527.4,1527.3,40.80984252]
[1744328841844,1.7013,1527.4,1527.3,42.12009252]
[1744328842037,1.7013,1527.4,1527.3,43.88119252]
[1744328842344,3.01147,1527.4,1527.3,43.88119252]
[1744328842545,3.01147,1527.4,1527.3,42.57094252]
[1744328842939,3.01147,1527.4,1527.3,43.88119252]
[1744328843648,3.01147,1527.4,1527.3,42.57094252]
[1744328844245,3.01147,1527.4,1527.3,43.88119252]
[1744328844448,3.01147,1527.4,1527.3,42.57094252]
[1744328845148,3.2078,1527.6,1527.3,47.57094252]
[1744328845446,6.5172,1527.6,1527.4,1.7008]
[1744328845744,7.8272,1527.6,1527.5,5.96808]
[1744328845945,7.8272,1527.6,1527.5,4.658]
[1744328846134,7.8272,1527.6,1527.5,45.458]
[1744328849543,7.8272,1527.6,1527.5,46.76808]
[1744328849750,6.5172,1527.6,1527.5,46.76808]
[1744328850749,13.65567043,1527.8,1527.6,1.30997]
[1744328850950,3.04451,1527.7,1527.6,2.97987]
[1744328851349,1.7346,1527.7,1527.6,2.97987]
[1744328851550,13.66907043,1527.8,1527.7,1.30991]
[1744328851850,14.09378043,1527.8,1527.7,2.97981]
[1744328852352,15.40361043,1527.8,1527.7,2.97981]
[1744328852750,14.09378043,1527.8,1527.7,2.97981]
[1744328853149,10.82568043,1527.8,1527.7,2.97981]
[1744328853555,3.2078,1527.8,1527.7,2.97981]
[1744328853744,12.31238043,1528.0,1527.7,6.6699]
[1744328854045,15.40316043,1528.0,1527.8,6.3512]
[1744328854349,14.09348043,1528.0,1527.8,6.3512]
[1744328854952,14.09348043,1528.0,1527.9,1.30974]
[1744328855854,14.09348043,1528.0,1527.8,6.3512]
[1744328856044,15.40320043,1528.0,1527.8,5.96683]
[1744328856239,1.7811,1527.9,1527.8,5.96683]
[1744328858051,3.09084,1527.9,1527.8,5.96683]
[1744328858353,1.7811,1527.9,1527.8,5.96683]
[1744328859644,3.2234,1527.9,1527.8,5.96683]
[1744328862658,1.7811,1527.9,1527.8,5.96683]
[1744328862858,4.6945,1528.0,1527.9,1.30974]
[1744328863154,4.6945,1528.0,1527.9,3.09424]
[1744328864559,1.4867,1528.0,1527.9,3.09424]
[1744328867856,1.4867,1528.0,1527.9,1.30974]
[1744328868354,3.3012,1528.0,1527.9,1.30974]
[1744328869567,3.3012,1528.0,1527.9,3.11614]
[1744328869959,4.7135,1528.2,1528.1,1.30957]
[1744328870165,4.97,1528.2,1528.1,5.96257]
[1744328871862,5.13366714,1528.3,1528.2,1.30948]
[1744328872166,6.87306714,1528.3,1528.2,1.30948]
[1744328872364,6.87306714,1528.3,1528.2,42.10948]
[1744328873667,5.13366714,1528.3,1528.2,42.10948]
[1744328874166,6.87306714,1528.3,1528.2,42.10948]
[1744328874671,1.7394,1528.3,1528.2,42.10948]
[1744328875563,3.0488,1528.3,1528.2,45.452]
[1744328875869,8.0488,1528.3,1528.2,40.8]
[1744328877268,3.0488,1528.3,1528.2,40.8]
[1744328882181,8.0488,1528.3,1528.2,40.8]
[1744328882986,3.0488,1528.3,1528.2,40.8]
[1744328886079,8.0488,1528.3,1528.2,40.8]
[1744328886683,3.0488,1528.3,1528.2,40.8]
[1744328888286,8.0488,1528.3,1528.2,40.8]
[1744328888972,1.30948,1528.2,1528.1,0.00984252]
[1744328889182,1.30965,1528.0,1527.9,4.652]
[1744328889384,1.30965,1528.0,1527.9,45.452]
[1744328889586,1.30965,1528.0,1527.9,40.8]
[1744328889982,1.701,1528.0,1527.9,40.8]
[1744328890296,3.01065,1528.0,1527.9,40.8]
[1744328890588,1.701,1528.0,1527.9,40.8]
[1744328890888,3.01065,1528.0,1527.9,40.8]
[1744328891989,6.21845,1528.0,1527.9,40.8]
[1744328893176,3.01065,1528.0,1527.9,42.10974]
[1744328893583,1.701,1528.0,1527.9,42.10974]
[1744328894189,1.701,1528.0,1527.9,43.90334]
[1744328894689,1.701,1528.0,1527.9,42.10974]
[1744328894987,3.01065,1528.0,1527.9,40.8]
[1744328895586,1.701,1528.0,1527.9,42.10974]
[1744328895889,1.701,1528.0,1527.9,43.90334]
[1744328897088,3.01065,1528.0,1527.9,43.90334]
[1744328897886,3.01065,1528.0,1527.9,40.8]
[1744328898090,3.01065,1528.0,1527.9,42.10974]
[1744328898993,3.01065,1528.0,1527.9,40.8]
[1744328900292,3.01065,1528.0,1527.9,42.10974]
[1744328900893,3.01065,1528.0,1527.9,40.8]
[1744328902288,6.21845,1528.0,1527.9,40.8]
[1744328902996,6.21845,1528.0,1527.9,42.5464]
[1744328904699,3.01065,1528.0,1527.9,43.85614]
[1744328905099,3.01065,1528.0,1527.9,42.5464]
[1744328911405,6.21845,1528.0,1527.9,42.5464]
[1744328912505,11.35211714,1528.0,1527.9,42.5464]
[1744328915907,11.35211714,1528.0,1527.9,40.8]
[1744328916704,6.21845,1528.0,1527.9,40.8]
[1744328918909,11.21845,1528.0,1527.9,40.8]
[1744328920497,18.83633043,1528.0,1527.9,40.8]
[1744328921709,13.83633043,1528.0,1527.9,40.8]
[1744328921915,1.30974,1527.9,1527.8,0.00984252]
[1744328922104,1.31,1527.6,1527.5,10.22358936]
[1744328922303,4.5178,1527.6,1527.5,51.02358936]
[1744328923513,5.989,1527.6,1527.5,51.02358936]
[1744328925106,5.989,1527.6,1527.5,52.78238936]
[1744328925308,7.5514,1527.6,1527.5,52.78238936]
[1744328926114,12.69851994,1527.6,1527.5,42.5588]
[1744328926914,14.48391994,1527.6,1527.5,42.5588]
[1744328928311,14.48391994,1527.6,1527.5,40.8]
[1744328930715,1.31008,1527.5,1527.4,0.00984252]
[1744328930916,3.17198,1527.5,1527.4,0.00984252]
[1744328931214,8.17198,1527.5,1527.4,0.00984252]
[1744328931516,3.17198,1527.5,1527.4,0.00984252]
[1744328932018,3.17198,1527.5,1527.4,4.65584252]
[1744328933517,3.17198,1527.5,1527.4,0.00984252]
[1744328933716,3.17198,1527.5,1527.4,40.80984252]
[1744328935017,9.02398,1527.5,1527.4,40.80984252]
[1744328937120,14.02398,1527.5,1527.4,40.80984252]
[1744328937814,14.02398,1527.5,1527.4,0.00984252]
[1744328938118,9.02398,1527.5,1527.4,0.00984252]
[1744328938318,1.31043,1527.1,1527.0,10.22358936]
[1744328938513,4.51823,1527.1,1527.0,10.22358936]
[1744328938714,4.51823,1527.1,1527.0,51.02358936]
[1744328938916,4.51823,1527.1,1527.0,40.8]
[1744328939116,6.20673,1527.1,1527.0,40.8]
[1744328941509,7.80153,1527.1,1527.0,40.8]
[1744328943024,1.31051,1527.0,1526.9,0.00984252]
[1744328943217,3.07121,1527.0,1526.9,0.00984252]
[1744328943617,3.07121,1527.0,1526.9,40.80984252]
[1744328945524,3.07121,1527.0,1526.9,0.00984252]
[1744328951728,8.07121,1527.0,1526.9,2.52e-06]
[1744328952028,1.31077,1526.7,1526.6,40.8]
[1744328952231,1.31111,1526.3,1526.2,6.3916]
[1744328952520,1.31111,1526.3,1526.2,4.648]
[1744328952521,4.51891,1526.3,1526.2,4.648]
[1744328952726,4.51891,1526.3,1526.2,45.448]
[1744328953114,6.00881,1526.3,1526.2,45.448]
[1744328954829,6.00881,1526.3,1526.2,40.8]
[1744328955029,7.58081,1526.3,1526.2,40.8]
[1744328958028,1.3112,1526.2,1526.1,0.00984252]
[1744328958322,3.1003,1526.2,1526.1,0.00984252]
[1744328958930,3.1003,1526.2,1526.1,40.80984252]
[1744328960329,1.3112,1526.2,1526.1,40.80984252]
[1744328961127,3.1186,1526.2,1526.1,40.80984252]
[1744328961828,3.1186,1526.2,1526.1,42.57844252]
[1744328963035,4.51892,1526.3,1526.1,43.88967252]
[1744328963228,4.51892,1526.3,1526.2,6.4156]
[1744328963428,3.2078,1526.3,1526.2,7.7268]
[1744328963736,3.2078,1526.3,1526.2,12.7268]
[1744328964037,0.00984252,1526.4,1526.3,1.31111]
[1744328964231,0.00984252,1526.4,1526.3,3.11821]
[1744328964538,0.00984252,1526.4,1526.3,8.11821]
[1744328965937,0.00984252,1526.4,1526.3,8.77341]
[1744328966139,3.13455,1526.9,1526.7,1.31075]
[1744328966334,8.35491994,1527.0,1526.8,1.8071]
[1744328966536,5.14711994,1527.0,1526.9,1.3106]
[1744328967134,5.14711994,1527.0,1526.9,42.1106]
[1744328967742,5.14711994,1527.0,1526.9,50.3184]
[1744328968835,5.14711994,1527.0,1526.9,40.8]
[1744328969042,6.45762994,1527.0,1526.9,40.8]
[1744328969234,5.14711994,1527.0,1526.9,43.9762]
[1744328969640,6.45762994,1527.0,1526.9,42.6656]
[1744328969841,1.31051,1527.0,1526.9,42.6656]
[1744328970042,3.07151,1527.0,1526.9,42.6656]
[1744328970439,1.761,1527.0,1526.9,42.6656]
[1744328970649,0.00984252,1527.1,1527.0,1.31051]
[1744328970847,0.00984252,1527.1,1527.0,7.74561]
[1744328972639,0.00984252,1527.1,1527.0,12.74561]
[1744328972939,0.00984252,1527.1,1527.0,13.40081]
[1744328973343,5.96694,1527.5,1527.3,1.31018]
[1744328973544,5.96694,1527.5,1527.4,4.645]
[1744328973747,7.71114,1527.5,1527.4,6.3119]
[1744328974245,7.71114,1527.5,1527.4,4.645]
[1744328974844,4.50334,1527.5,1527.4,4.645]
[1744328977845,7.71114,1527.5,1527.4,4.645]
[1744328980745,11.401,1527.5,1527.0,3.863]
[1744328980947,1.31037,1527.2,1527.0,5.95449]
[1744328981145,1.31033,1527.3,1527.1,1.31043]
[1744328981349,1.7515,1527.2,1527.1,1.31042]
[1744328981547,1.7515,1527.2,1527.1,3.04852]
[1744328982450,1.7515,1527.2,1527.1,6.25632]
[1744328982853,4.6568,1527.5,1527.3,1.31021]
[1744328983149,7.68734,1527.5,1527.3,5.95421]
[1744328983352,3.03057,1527.4,1527.3,5.95421]
[1744328983845,1.31008,1527.5,1527.4,1.31017]
[1744328984053,2.81188,1527.5,1527.4,1.31017]
[1744328984252,2.81188,1527.5,1527.3,9.162]
[1744328984451,2.81188,1527.5,1527.3,9.16203]
[1744328984654,1.31017,1527.4,1527.3,4.644]
[1744328985655,3.07527,1527.4,1527.3,4.644]
[1744328986252,1.31034,1527.2,1527.1,4.644]
[1744328986958,3.07544,1527.2,1527.1,4.644]
[1744328987353,1.31045,1527.1,1527.0,1.31051]
[1744328987549,4.46385,1527.1,1526.9,44.01764252]
[1744328987858,4.46385,1527.1,1526.9,45.32818252]
[1744328988048,1.733,1527.0,1526.9,45.32818252]
[1744328989551,1.733,1527.0,1526.9,46.94668252]
[1744328994162,3.2077,1527.0,1526.9,45.32818252]
[1744328995562,7.72601,1527.0,1526.9,40.80984252]
[1744328995957,3.2077,1527.0,1526.9,42.12044252]
[1744328996756,3.2077,1527.0,1526.9,47.03264252]
[1744328999359,3.2077,1527.0,1526.9,43.82484252]
[1744329000966,1.3883,1527.1,1527.0,1.31051]
[1744329001263,1.3883,1527.1,1527.0,2.93541]
[1744329001462,2.69873,1527.1,1527.0,1.6249]
[1744329001668,4.37843,1527.1,1526.9,45.64254252]
[1744329001968,1.6797,1527.0,1526.9,46.95314252]
[1744329002462,2.99021,1527.0,1526.9,40.80984252]
[1744329002671,7.99021,1527.0,1526.9,40.80984252]
[1744329002865,1.6797,1527.0,1526.9,42.12044252]
[1744329003063,1.6797,1527.0,1526.9,46.76244252]
[1744329003364,1.6797,1527.0,1526.9,42.12044252]
[1744329003866,1.6797,1527.0,1526.9,46.76244252]